[Event "Early-Titled-Tuesday-Blitz-March-26-2024"]
[Site "Chess.com"]
[Date "2024.03.26"]
[Round "3"]
[White "Aslanov_Umid"]
[Black "agvania123"]
[Result "1/2-1/2"]
[WhiteElo "2617"]
[BlackElo "2420"]
[TimeControl "180+1"]
[EndTime "8:28:03 PDT"]
[Termination "Game drawn - insufficient material"]

1. e4 {[%clk 0:03:00.9]} 1... d5 {[%clk 0:02:59.1]} 2. exd5 {[%clk 0:03:00.2]}
2... Qxd5 {[%clk 0:03:00]} 3. Nc3 {[%clk 0:03:00.7]} 3... Qd8 {[%clk 0:02:58.8]}
4. h3 {[%clk 0:02:58.9]} 4... Nf6 {[%clk 0:02:58.6]} 5. Nf3 {[%clk 0:02:59.4]}
5... a6 {[%clk 0:02:58.4]} 6. d4 {[%clk 0:02:57.7]} 6... Bf5 {[%clk 0:02:56]} 7.
Bc4 {[%clk 0:02:49.9]} 7... e6 {[%clk 0:02:55]} 8. O-O {[%clk 0:02:49.9]} 8...
Be7 {[%clk 0:02:51.4]} 9. Nh4 {[%clk 0:02:46.2]} 9... Bg6 {[%clk 0:02:42.9]} 10.
Nxg6 {[%clk 0:02:13.8]} 10... hxg6 {[%clk 0:02:43.8]} 11. d5 {[%clk 0:01:49.8]}
11... exd5 {[%clk 0:02:42.6]} 12. Nxd5 {[%clk 0:01:48.6]} 12... Nxd5 {[%clk
0:02:42.9]} 13. Bxd5 {[%clk 0:01:49.5]} 13... c6 {[%clk 0:02:43.3]} 14. Bf3
{[%clk 0:01:41.7]} 14... Qxd1 {[%clk 0:02:43.7]} 15. Rxd1 {[%clk 0:01:42.6]}
15... O-O {[%clk 0:02:42.8]} 16. Bf4 {[%clk 0:01:40.9]} 16... Bf6 {[%clk
0:02:40.7]} 17. c3 {[%clk 0:01:40.2]} 17... a5 {[%clk 0:02:37.5]} 18. g4 {[%clk
0:01:31.3]} 18... g5 {[%clk 0:02:30]} 19. Bd6 {[%clk 0:01:29.7]} 19... Re8
{[%clk 0:02:28.9]} 20. Bc7 {[%clk 0:01:27]} 20... a4 {[%clk 0:02:20.1]} 21. a3
{[%clk 0:01:13.2]} 21... Na6 {[%clk 0:02:18.8]} 22. Bb6 {[%clk 0:01:11.8]} 22...
Bd8 {[%clk 0:02:16.6]} 23. Be3 {[%clk 0:01:03.7]} 23... Bf6 {[%clk 0:02:15.5]}
24. Rd7 {[%clk 0:01:02.9]} 24... Re7 {[%clk 0:02:12.4]} 25. Rad1 {[%clk
0:00:57.6]} 25... Rae8 {[%clk 0:02:05.3]} 26. Kg2 {[%clk 0:00:43.2]} 26... Rxd7
{[%clk 0:02:05.2]} 27. Rxd7 {[%clk 0:00:44.1]} 27... Re7 {[%clk 0:02:05.8]} 28.
Rd8+ {[%clk 0:00:41.7]} 28... Kh7 {[%clk 0:02:04.9]} 29. Ra8 {[%clk 0:00:32.3]}
29... Rd7 {[%clk 0:01:51.2]} 30. Bxc6 {[%clk 0:00:28.3]} 30... bxc6 {[%clk
0:01:46.9]} 31. Rxa6 {[%clk 0:00:28.5]} 31... Rb7 {[%clk 0:01:46.4]} 32. Rxa4
{[%clk 0:00:21.8]} 32... Rxb2 {[%clk 0:01:46.8]} 33. Rc4 {[%clk 0:00:20]} 33...
Rb3 {[%clk 0:01:42.5]} 34. Bd4 {[%clk 0:00:10.5]} 34... Bxd4 {[%clk 0:01:26.8]}
35. cxd4 {[%clk 0:00:11.4]} 35... Rxa3 {[%clk 0:01:23.9]} 36. Rxc6 {[%clk
0:00:12]} 36... Rd3 {[%clk 0:01:23.6]} 37. Rd6 {[%clk 0:00:10.6]} 37... f6
{[%clk 0:01:23.4]} 38. f3 {[%clk 0:00:11]} 38... Kg6 {[%clk 0:01:23.2]} 39. Kf2
{[%clk 0:00:11.4]} 39... Rd2+ {[%clk 0:01:20.7]} 40. Ke3 {[%clk 0:00:11.2]}
40... Rh2 {[%clk 0:01:21.2]} 41. d5 {[%clk 0:00:06.1]} 41... Rxh3 {[%clk
0:01:21.4]} 42. Rc6 {[%clk 0:00:06]} 42... Rh1 {[%clk 0:01:21.8]} 43. Rc4 {[%clk
0:00:05.6]} 43... Re1+ {[%clk 0:01:21]} 44. Kd3 {[%clk 0:00:05.6]} 44... Rd1+
{[%clk 0:01:21.4]} 45. Ke4 {[%clk 0:00:06.2]} 45... Kf7 {[%clk 0:01:17.3]} 46.
Rc7+ {[%clk 0:00:04.5]} 46... Kg6 {[%clk 0:01:15.6]} 47. Rc4 {[%clk 0:00:04.8]}
47... Kf7 {[%clk 0:01:15.4]} 48. Rd4 {[%clk 0:00:05.3]} 48... Rxd4+ {[%clk
0:00:59]} 49. Kxd4 {[%clk 0:00:06.1]} 49... Ke7 {[%clk 0:00:59.5]} 50. Kc5
{[%clk 0:00:06.8]} 50... Kd7 {[%clk 0:00:59.9]} 51. d6 {[%clk 0:00:07.5]} 51...
g6 {[%clk 0:01:00.3]} 52. Kd5 {[%clk 0:00:08.2]} 52... f5 {[%clk 0:01:00.8]} 53.
gxf5 {[%clk 0:00:09]} 53... gxf5 {[%clk 0:01:01.1]} 54. Ke5 {[%clk 0:00:09.9]}
54... g4 {[%clk 0:01:01.6]} 55. fxg4 {[%clk 0:00:10]} 55... fxg4 {[%clk
0:01:02.1]} 56. Kf4 {[%clk 0:00:10.9]} 56... g3 {[%clk 0:01:02.7]} 57. Kxg3
{[%clk 0:00:11.8]} 57... Kxd6 {[%clk 0:01:03.2]} 1/2-1/2

[Event "Early-Titled-Tuesday-Blitz-March-26-2024"]
[Site "Chess.com"]
[Date "2024.03.26"]
[Round "3"]
[White "moro182"]
[Black "Rashad_Zeynalli"]
[Result "1-0"]
[WhiteElo "2890"]
[BlackElo "2683"]
[TimeControl "180+1"]
[EndTime "8:28:04 PDT"]
[Termination "moro182 won on time"]

1. d4 {[%clk 0:03:00.9]} 1... d5 {[%clk 0:02:59.4]} 2. Bf4 {[%clk 0:02:54.9]}
2... Nf6 {[%clk 0:02:55.5]} 3. e3 {[%clk 0:02:54.6]} 3... c5 {[%clk 0:02:55.8]}
4. dxc5 {[%clk 0:02:55.5]} 4... e6 {[%clk 0:02:50]} 5. b4 {[%clk 0:02:53.2]}
5... a5 {[%clk 0:02:45.2]} 6. c3 {[%clk 0:02:52.7]} 6... Nfd7 {[%clk 0:02:32.2]}
7. Bb5 {[%clk 0:02:37.4]} 7... Nc6 {[%clk 0:02:03.8]} 8. Qb3 {[%clk 0:01:58.6]}
8... Qf6 {[%clk 0:01:56.6]} 9. Nf3 {[%clk 0:01:41.2]} 9... axb4 {[%clk
0:01:46.6]} 10. O-O {[%clk 0:01:40.9]} 10... Bxc5 {[%clk 0:01:40.3]} 11. cxb4
{[%clk 0:01:18.9]} 11... Qxa1 {[%clk 0:01:14.9]} 12. Nc3 {[%clk 0:01:18]} 12...
Qxf1+ {[%clk 0:01:11.9]} 13. Kxf1 {[%clk 0:01:18.5]} 13... Be7 {[%clk
0:01:01.7]} 14. Nd4 {[%clk 0:00:59.7]} 14... Nxd4 {[%clk 0:00:58.1]} 15. exd4
{[%clk 0:01:00.6]} 15... O-O {[%clk 0:00:58.2]} 16. a4 {[%clk 0:01:00.9]} 16...
Nf6 {[%clk 0:00:50.4]} 17. a5 {[%clk 0:01:00.6]} 17... Bd7 {[%clk 0:00:50.5]}
18. Bxd7 {[%clk 0:00:54.3]} 18... Nxd7 {[%clk 0:00:51.4]} 19. Na4 {[%clk
0:00:55]} 19... Rfc8 {[%clk 0:00:23]} 20. Nc5 {[%clk 0:00:54.6]} 20... Nxc5
{[%clk 0:00:17.4]} 21. dxc5 {[%clk 0:00:47.4]} 21... Bf6 {[%clk 0:00:17.4]} 22.
Bd6 {[%clk 0:00:46.8]} 22... d4 {[%clk 0:00:15.2]} 23. Qd3 {[%clk 0:00:46.4]}
23... e5 {[%clk 0:00:14.3]} 24. f3 {[%clk 0:00:46.9]} 24... Re8 {[%clk
0:00:13.3]} 25. Qb5 {[%clk 0:00:46]} 25... e4 {[%clk 0:00:10.2]} 26. Qxb7 {[%clk
0:00:26.3]} 26... e3 {[%clk 0:00:06.8]} 27. Ke2 {[%clk 0:00:24.2]} 27... d3+
{[%clk 0:00:06.6]} 28. Kxd3 {[%clk 0:00:24.8]} 28... e2 {[%clk 0:00:07]} 29. Bg3
{[%clk 0:00:25.3]} 29... Rad8+ {[%clk 0:00:06.2]} 30. Kc4 {[%clk 0:00:25.4]}
30... e1=Q {[%clk 0:00:03.2]} 31. Bxe1 {[%clk 0:00:25.4]} 31... Rxe1 {[%clk
0:00:04.1]} 32. a6 {[%clk 0:00:26.2]} 32... Rc1+ {[%clk 0:00:02.7]} 33. Kb5
{[%clk 0:00:26.4]} 33... Ra1 {[%clk 0:00:01.9]} 34. a7 {[%clk 0:00:26.4]} 34...
Bc3 {[%clk 0:00:02.4]} 35. Kc4 {[%clk 0:00:25.1]} 1-0

[Event "Early-Titled-Tuesday-Blitz-March-26-2024"]
[Site "Chess.com"]
[Date "2024.03.26"]
[Round "3"]
[White "FairChess_on_YouTube"]
[Black "Sattarov_Bobur"]
[Result "0-1"]
[WhiteElo "3123"]
[BlackElo "2846"]
[TimeControl "180+1"]
[EndTime "8:28:05 PDT"]
[Termination "Sattarov_Bobur won by checkmate"]

1. d4 {[%clk 0:03:00.9]} 1... Nf6 {[%clk 0:02:59.6]} 2. c4 {[%clk 0:03:00.5]}
2... c5 {[%clk 0:02:59.9]} 3. d5 {[%clk 0:02:55.9]} 3... g6 {[%clk 0:03:00.1]}
4. Nc3 {[%clk 0:02:55.6]} 4... Bg7 {[%clk 0:03:01]} 5. e4 {[%clk 0:02:55.9]}
5... d6 {[%clk 0:03:01.9]} 6. Bd3 {[%clk 0:02:51.8]} 6... O-O {[%clk 0:03:02.1]}
7. h3 {[%clk 0:02:48.9]} 7... e6 {[%clk 0:03:02.2]} 8. Nf3 {[%clk 0:02:49.3]}
8... Nbd7 {[%clk 0:03:02.7]} 9. O-O {[%clk 0:02:47.7]} 9... e5 {[%clk
0:03:02.9]} 10. a3 {[%clk 0:02:44.7]} 10... h6 {[%clk 0:03:02.7]} 11. b4 {[%clk
0:02:44.9]} 11... Nh7 {[%clk 0:03:02.9]} 12. Be3 {[%clk 0:02:30.3]} 12... b6
{[%clk 0:02:59.4]} 13. Bc2 {[%clk 0:02:30.5]} 13... f5 {[%clk 0:02:57.5]} 14.
Ba4 {[%clk 0:02:29.5]} 14... f4 {[%clk 0:02:55.2]} 15. Bd2 {[%clk 0:02:25.2]}
15... Nhf6 {[%clk 0:02:40.2]} 16. Re1 {[%clk 0:02:05.8]} 16... Rf7 {[%clk
0:02:30.2]} 17. Bc6 {[%clk 0:02:03.1]} 17... Rb8 {[%clk 0:02:30.1]} 18. Rb1
{[%clk 0:02:00.1]} 18... g5 {[%clk 0:02:27.9]} 19. bxc5 {[%clk 0:01:46.8]} 19...
Nxc5 {[%clk 0:02:26.5]} 20. Qc2 {[%clk 0:01:31.3]} 20... Bf8 {[%clk 0:02:19.5]}
21. Na4 {[%clk 0:01:20.9]} 21... Nxa4 {[%clk 0:02:08.2]} 22. Qxa4 {[%clk
0:01:11]} 22... Rg7 {[%clk 0:02:08.5]} 23. Rb3 {[%clk 0:00:55.6]} 23... h5
{[%clk 0:01:55.2]} 24. Kf1 {[%clk 0:00:48.9]} 24... g4 {[%clk 0:01:51.9]} 25.
hxg4 {[%clk 0:00:41]} 25... hxg4 {[%clk 0:01:52.8]} 26. Ng1 {[%clk 0:00:37.2]}
26... Rh7 {[%clk 0:01:41.6]} 27. f3 {[%clk 0:00:32.3]} 27... Qc7 {[%clk
0:01:33.2]} 28. fxg4 {[%clk 0:00:24.1]} 28... Bxg4 {[%clk 0:01:29.3]} 29. Nf3
{[%clk 0:00:22.3]} 29... Qg7 {[%clk 0:01:29]} 30. Kf2 {[%clk 0:00:15.1]} 30...
Qg6 {[%clk 0:01:28.2]} 31. c5 {[%clk 0:00:08]} 31... Bxf3 {[%clk 0:01:19.5]} 32.
Rxf3 {[%clk 0:00:08.9]} 32... bxc5 {[%clk 0:01:17.4]} 33. Rg1 {[%clk 0:00:05.6]}
33... Rb2 {[%clk 0:01:15.6]} 34. Ke1 {[%clk 0:00:05.4]} 34... Rh2 {[%clk
0:01:14.9]} 35. Rf2 {[%clk 0:00:02.1]} 35... Nxe4 {[%clk 0:01:13.5]} 36. Re2
{[%clk 0:00:02.6]} 36... Nxd2 {[%clk 0:01:11.5]} 37. Rxd2 {[%clk 0:00:03.5]}
37... Qg7 {[%clk 0:01:02.1]} 38. Rxb2 {[%clk 0:00:03]} 38... e4 {[%clk
0:01:01.3]} 39. Rb8 {[%clk 0:00:01.7]} 39... Qc3+ {[%clk 0:01:00.1]} 40. Ke2
{[%clk 0:00:01.1]} 40... Qd3+ {[%clk 0:00:58.5]} 41. Kf2 {[%clk 0:00:01.6]}
41... Qd2+ {[%clk 0:00:47.5]} 42. Kf1 {[%clk 0:00:02]} 42... e3 {[%clk 0:00:48]}
43. Qxf4 {[%clk 0:00:02]} 43... e2+ {[%clk 0:00:47.1]} 44. Kf2 {[%clk
0:00:02.5]} 44... e1=Q+ {[%clk 0:00:45.9]} 45. Kf3 {[%clk 0:00:02.5]} 45...
Qde2# {[%clk 0:00:46.3]} 0-1

[Event "Early-Titled-Tuesday-Blitz-March-26-2024"]
[Site "Chess.com"]
[Date "2024.03.26"]
[Round "3"]
[White "zubridis"]
[Black "Anton_Demchenko"]
[Result "0-1"]
[WhiteElo "2535"]
[BlackElo "3008"]
[TimeControl "180+1"]
[EndTime "8:28:08 PDT"]
[Termination "Anton_Demchenko won on time"]

1. e4 {[%clk 0:02:59.2]} 1... e5 {[%clk 0:02:59.7]} 2. Bc4 {[%clk 0:02:57.6]}
2... Nf6 {[%clk 0:02:59.6]} 3. d3 {[%clk 0:02:57.5]} 3... Nc6 {[%clk 0:02:58.7]}
4. Nc3 {[%clk 0:02:56.7]} 4... Bb4 {[%clk 0:02:58.8]} 5. Ne2 {[%clk 0:02:56.5]}
5... d5 {[%clk 0:02:59]} 6. exd5 {[%clk 0:02:57.4]} 6... Nxd5 {[%clk 0:02:59.9]}
7. O-O {[%clk 0:02:57.6]} 7... Be6 {[%clk 0:03:00.2]} 8. Bxd5 {[%clk 0:02:16.6]}
8... Bxd5 {[%clk 0:03:00.1]} 9. f4 {[%clk 0:02:17.3]} 9... f6 {[%clk 0:03:00.3]}
10. Ng3 {[%clk 0:02:07.7]} 10... Be6 {[%clk 0:02:32.8]} 11. f5 {[%clk
0:02:00.6]} 11... Bf7 {[%clk 0:02:31]} 12. Qg4 {[%clk 0:01:58.2]} 12... Qd4+
{[%clk 0:01:57.2]} 13. Qxd4 {[%clk 0:01:57.6]} 13... Nxd4 {[%clk 0:01:58.1]} 14.
Rf2 {[%clk 0:01:57.4]} 14... Bc5 {[%clk 0:01:39.6]} 15. Na4 {[%clk 0:01:23.6]}
15... Nxc2 {[%clk 0:01:24.4]} 16. Nxc5 {[%clk 0:01:20.7]} 16... Nxa1 {[%clk
0:01:25]} 17. b3 {[%clk 0:01:06]} 17... b6 {[%clk 0:01:24.7]} 18. Ne6 {[%clk
0:01:00]} 18... Ke7 {[%clk 0:00:49]} 19. Bb2 {[%clk 0:00:31.7]} 19... Nxb3
{[%clk 0:00:46.8]} 20. axb3 {[%clk 0:00:30.7]} 20... Bxe6 {[%clk 0:00:47.5]} 21.
fxe6 {[%clk 0:00:31.3]} 21... Kxe6 {[%clk 0:00:45.6]} 22. Nf5 {[%clk 0:00:24]}
22... g6 {[%clk 0:00:43.5]} 23. Ng7+ {[%clk 0:00:20.8]} 23... Ke7 {[%clk
0:00:39.7]} 24. d4 {[%clk 0:00:20.6]} 24... Kf7 {[%clk 0:00:27]} 25. dxe5 {[%clk
0:00:16]} 25... Kxg7 {[%clk 0:00:27.5]} 26. e6 {[%clk 0:00:15.4]} 26... Rhf8
{[%clk 0:00:22.3]} 27. e7 {[%clk 0:00:03.3]} 27... Rf7 {[%clk 0:00:21.6]} 28. g4
{[%clk 0:00:03.8]} 28... g5 {[%clk 0:00:18.8]} 29. h4 {[%clk 0:00:02.9]} 29...
h6 {[%clk 0:00:19.2]} 30. hxg5 {[%clk 0:00:01.1]} 30... hxg5 {[%clk 0:00:20.1]}
0-1

[Event "Early-Titled-Tuesday-Blitz-March-26-2024"]
[Site "Chess.com"]
[Date "2024.03.26"]
[Round "3"]
[White "MITerryble"]
[Black "Staudenhocker43"]
[Result "0-1"]
[WhiteElo "2992"]
[BlackElo "2550"]
[TimeControl "180+1"]
[EndTime "8:28:08 PDT"]
[Termination "Staudenhocker43 won by resignation"]

1. e4 {[%clk 0:03:00.9]} 1... c5 {[%clk 0:02:58.8]} 2. Nf3 {[%clk 0:03:01.1]}
2... d6 {[%clk 0:02:59.2]} 3. Bb5+ {[%clk 0:03:01.1]} 3... Bd7 {[%clk
0:02:58.9]} 4. Bxd7+ {[%clk 0:03:01.3]} 4... Qxd7 {[%clk 0:02:59.8]} 5. O-O
{[%clk 0:03:01.4]} 5... Nc6 {[%clk 0:02:59.1]} 6. c3 {[%clk 0:03:01.6]} 6... d5
{[%clk 0:02:57.7]} 7. e5 {[%clk 0:02:43.3]} 7... e6 {[%clk 0:02:56.1]} 8. d4
{[%clk 0:02:43.3]} 8... Rc8 {[%clk 0:02:56.2]} 9. a3 {[%clk 0:02:38.4]} 9...
Nge7 {[%clk 0:02:42.1]} 10. dxc5 {[%clk 0:02:37]} 10... Ng6 {[%clk 0:02:41.1]}
11. b4 {[%clk 0:02:37]} 11... Ngxe5 {[%clk 0:02:37.9]} 12. Nxe5 {[%clk
0:02:35.6]} 12... Nxe5 {[%clk 0:02:38.8]} 13. Re1 {[%clk 0:02:35.3]} 13... Ng6
{[%clk 0:02:37.3]} 14. Bb2 {[%clk 0:02:33.2]} 14... b6 {[%clk 0:02:28.5]} 15.
cxb6 {[%clk 0:02:26.5]} 15... axb6 {[%clk 0:02:29.4]} 16. Qd4 {[%clk 0:02:26.6]}
16... b5 {[%clk 0:02:19.7]} 17. Nd2 {[%clk 0:02:26.6]} 17... f6 {[%clk
0:02:16.4]} 18. Rad1 {[%clk 0:02:04.2]} 18... Kf7 {[%clk 0:02:12.5]} 19. c4
{[%clk 0:01:57.2]} 19... bxc4 {[%clk 0:02:08.2]} 20. Nxc4 {[%clk 0:01:57.1]}
20... Qc6 {[%clk 0:01:58.5]} 21. Ne3 {[%clk 0:01:51]} 21... Bd6 {[%clk
0:01:51.7]} 22. Rc1 {[%clk 0:01:17.7]} 22... Qb7 {[%clk 0:01:49.9]} 23. Ng4
{[%clk 0:01:10.7]} 23... e5 {[%clk 0:01:35]} 24. Qd2 {[%clk 0:01:07.8]} 24...
Ne7 {[%clk 0:01:19.3]} 25. Rcd1 {[%clk 0:00:59.7]} 25... d4 {[%clk 0:01:10.7]}
26. Bxd4 {[%clk 0:00:51.2]} 26... exd4 {[%clk 0:01:06.5]} 27. Qa2+ {[%clk
0:00:51.9]} 27... Kg6 {[%clk 0:00:39.2]} 28. Rxd4 {[%clk 0:00:51.5]} 28... Rhd8
{[%clk 0:00:36.8]} 29. Rde4 {[%clk 0:00:18.5]} 29... Qxe4 {[%clk 0:00:18.3]} 30.
Ne3 {[%clk 0:00:18.5]} 30... Nf5 {[%clk 0:00:15.8]} 31. Qa1 {[%clk 0:00:10.4]}
31... Be5 {[%clk 0:00:13.1]} 32. Qa2 {[%clk 0:00:04.5]} 32... Nxe3 {[%clk
0:00:12.5]} 33. fxe3 {[%clk 0:00:03.4]} 33... Rc2 {[%clk 0:00:12.3]} 0-1

[Event "Early-Titled-Tuesday-Blitz-March-26-2024"]
[Site "Chess.com"]
[Date "2024.03.26"]
[Round "3"]
[White "TimGrutter03"]
[Black "Massakru"]
[Result "1-0"]
[WhiteElo "2562"]
[BlackElo "2361"]
[TimeControl "180+1"]
[EndTime "8:28:08 PDT"]
[Termination "TimGrutter03 won by resignation"]

1. e4 {[%clk 0:03:00.9]} 1... e5 {[%clk 0:02:59.9]} 2. Nf3 {[%clk 0:03:00.9]}
2... Nc6 {[%clk 0:03:00.4]} 3. Bc4 {[%clk 0:03:01.3]} 3... Nf6 {[%clk
0:02:59.8]} 4. d3 {[%clk 0:02:57.2]} 4... h6 {[%clk 0:02:59.9]} 5. O-O {[%clk
0:02:56.3]} 5... d6 {[%clk 0:02:58.1]} 6. a4 {[%clk 0:02:55.6]} 6... g5 {[%clk
0:02:56.5]} 7. a5 {[%clk 0:02:55.7]} 7... a6 {[%clk 0:02:55.8]} 8. Nc3 {[%clk
0:02:53.8]} 8... g4 {[%clk 0:02:55.4]} 9. Ne1 {[%clk 0:02:49.2]} 9... Bg7 {[%clk
0:02:54]} 10. Nd5 {[%clk 0:02:47]} 10... Nxd5 {[%clk 0:02:51.8]} 11. Bxd5 {[%clk
0:02:46.9]} 11... Ne7 {[%clk 0:02:51.7]} 12. Bb3 {[%clk 0:02:44.1]} 12... Ng6
{[%clk 0:02:49]} 13. f3 {[%clk 0:02:35.6]} 13... gxf3 {[%clk 0:02:44.2]} 14.
Qxf3 {[%clk 0:02:35.3]} 14... O-O {[%clk 0:02:38.3]} 15. Bxf7+ {[%clk
0:02:28.4]} 15... Kh8 {[%clk 0:02:38.3]} 16. Qh5 {[%clk 0:02:23.6]} 16... Nf4
{[%clk 0:02:36.2]} 17. Bxf4 {[%clk 0:02:23.2]} 17... exf4 {[%clk 0:02:36.1]} 18.
c3 {[%clk 0:02:06.4]} 18... Qf6 {[%clk 0:02:21.7]} 19. Bb3 {[%clk 0:01:57.5]}
19... Bd7 {[%clk 0:02:09.4]} 20. d4 {[%clk 0:01:53.6]} 20... Rae8 {[%clk
0:02:05.8]} 21. Nd3 {[%clk 0:01:46.2]} 21... Rxe4 {[%clk 0:02:03.1]} 22. Bd5
{[%clk 0:01:45.7]} 22... Re3 {[%clk 0:01:55.8]} 23. Nxf4 {[%clk 0:01:44.1]}
23... Bf5 {[%clk 0:01:52.5]} 24. g4 {[%clk 0:01:31.1]} 24... Bh7 {[%clk
0:01:47.9]} 25. Ng2 {[%clk 0:01:28.9]} 25... Qe7 {[%clk 0:01:25.8]} 26. Rxf8+
{[%clk 0:01:16.1]} 26... Bxf8 {[%clk 0:01:25.6]} 27. Rf1 {[%clk 0:01:00.2]}
27... Bg7 {[%clk 0:01:19.6]} 28. Nxe3 {[%clk 0:00:53.2]} 28... Qxe3+ {[%clk
0:01:19.5]} 29. Kg2 {[%clk 0:00:48.9]} 29... Bd3 {[%clk 0:01:09]} 30. Rf3 {[%clk
0:00:43.2]} 30... Qe2+ {[%clk 0:01:07.6]} 31. Rf2 {[%clk 0:00:40.8]} 31... Qe1
{[%clk 0:01:03.6]} 32. Qh3 {[%clk 0:00:28.1]} 32... c6 {[%clk 0:01:00.8]} 33.
Qxd3 {[%clk 0:00:26.8]} 33... cxd5 {[%clk 0:00:58.8]} 34. Qf3 {[%clk 0:00:25.8]}
34... Qc1 {[%clk 0:00:49]} 35. Qxd5 {[%clk 0:00:21.6]} 35... Qe3 {[%clk
0:00:46.7]} 36. Qxb7 {[%clk 0:00:18.1]} 36... Kh7 {[%clk 0:00:44.8]} 37. Qf3
{[%clk 0:00:17.5]} 37... Qc1 {[%clk 0:00:43.7]} 38. Qd3+ {[%clk 0:00:13.3]}
38... Kh8 {[%clk 0:00:43.4]} 39. Qxa6 {[%clk 0:00:13.8]} 39... Qe3 {[%clk
0:00:42.8]} 40. Qa8+ {[%clk 0:00:13.6]} 40... Kh7 {[%clk 0:00:42.5]} 41. Qf3
{[%clk 0:00:14.5]} 41... Qc1 {[%clk 0:00:42.2]} 42. a6 {[%clk 0:00:14.7]} 42...
Qa1 {[%clk 0:00:41.6]} 43. Qe4+ {[%clk 0:00:12.5]} 43... Kh8 {[%clk 0:00:41.3]}
44. Qb7 {[%clk 0:00:11.1]} 44... d5 {[%clk 0:00:37.2]} 45. a7 {[%clk 0:00:08.6]}
45... Qb1 {[%clk 0:00:36.7]} 46. a8=Q+ {[%clk 0:00:08.3]} 46... Kh7 {[%clk
0:00:37.2]} 47. Qxd5 {[%clk 0:00:08.6]} 1-0

[Event "Early-Titled-Tuesday-Blitz-March-26-2024"]
[Site "Chess.com"]
[Date "2024.03.26"]
[Round "3"]
[White "vladislavkovalev"]
[Black "Practical-Play"]
[Result "1-0"]
[WhiteElo "2866"]
[BlackElo "2520"]
[TimeControl "180+1"]
[EndTime "8:28:09 PDT"]
[Termination "vladislavkovalev won on time"]

1. e4 {[%clk 0:02:58.3]} 1... e5 {[%clk 0:02:59.2]} 2. Nf3 {[%clk 0:02:58.4]}
2... Nc6 {[%clk 0:02:59.5]} 3. Bb5 {[%clk 0:02:59.1]} 3... a6 {[%clk 0:02:58.6]}
4. Ba4 {[%clk 0:02:59.6]} 4... g6 {[%clk 0:02:58.6]} 5. d4 {[%clk 0:02:48.6]}
5... exd4 {[%clk 0:02:59.5]} 6. Bg5 {[%clk 0:02:46.6]} 6... Be7 {[%clk
0:02:57.1]} 7. Bxe7 {[%clk 0:02:46.6]} 7... Qxe7 {[%clk 0:02:57.1]} 8. Bxc6
{[%clk 0:02:46]} 8... dxc6 {[%clk 0:02:47.1]} 9. Qxd4 {[%clk 0:02:46]} 9... Nf6
{[%clk 0:02:26.3]} 10. Nc3 {[%clk 0:02:46.4]} 10... O-O {[%clk 0:02:25.3]} 11.
O-O-O {[%clk 0:02:34.8]} 11... Be6 {[%clk 0:02:03.5]} 12. h3 {[%clk 0:02:23.2]}
12... Nd7 {[%clk 0:01:48.6]} 13. Qe3 {[%clk 0:02:15.8]} 13... Nb6 {[%clk
0:01:13.8]} 14. Nd4 {[%clk 0:02:03.4]} 14... Nc4 {[%clk 0:01:01.8]} 15. Qd3
{[%clk 0:01:49.5]} 15... Qb4 {[%clk 0:00:55.4]} 16. Nb3 {[%clk 0:01:48.6]} 16...
a5 {[%clk 0:00:48.7]} 17. a3 {[%clk 0:01:35.3]} 17... Nxa3 {[%clk 0:00:24]} 18.
Na2 {[%clk 0:01:16.2]} 18... Qa4 {[%clk 0:00:10.4]} 19. bxa3 {[%clk 0:01:07.1]}
19... Qxa3+ {[%clk 0:00:10.6]} 20. Kb1 {[%clk 0:01:07.9]} 20... a4 {[%clk
0:00:10.4]} 21. Nbc1 {[%clk 0:01:08.1]} 21... Qe7 {[%clk 0:00:07.9]} 22. f4
{[%clk 0:01:02.4]} 22... Ra6 {[%clk 0:00:08.4]} 23. Ka1 {[%clk 0:01:02.4]} 23...
Qf6+ {[%clk 0:00:08.1]} 24. Qc3 {[%clk 0:00:57.4]} 24... Qxf4 {[%clk 0:00:08.3]}
25. Nd3 {[%clk 0:00:57.6]} 25... Qg3 {[%clk 0:00:07.8]} 26. Nc5 {[%clk
0:00:57.1]} 26... Qxc3+ {[%clk 0:00:06.5]} 27. Nxc3 {[%clk 0:00:58]} 27... Ra5
{[%clk 0:00:05.8]} 28. Nxb7 {[%clk 0:00:52.3]} 28... Rg5 {[%clk 0:00:05.4]} 29.
g4 {[%clk 0:00:49.8]} 29... Kg7 {[%clk 0:00:04.6]} 30. Nd8 {[%clk 0:00:37.8]}
30... Bc4 {[%clk 0:00:04.4]} 31. Nxc6 {[%clk 0:00:37.1]} 31... Rc5 {[%clk
0:00:04.1]} 32. Nb4 {[%clk 0:00:31.1]} 32... a3 {[%clk 0:00:04.3]} 33. Rd4
{[%clk 0:00:30.7]} 33... Rb8 {[%clk 0:00:03.7]} 34. Nd3 {[%clk 0:00:30.7]} 34...
Bxd3 {[%clk 0:00:03.6]} 35. Rxd3 {[%clk 0:00:31.6]} 35... Rc4 {[%clk 0:00:02.1]}
36. Rb1 {[%clk 0:00:30.2]} 36... Rxb1+ {[%clk 0:00:01.8]} 37. Kxb1 {[%clk
0:00:31.1]} 37... Kf6 {[%clk 0:00:01.9]} 38. Ka2 {[%clk 0:00:29.2]} 38... Kg5
{[%clk 0:00:02.2]} 39. Kxa3 {[%clk 0:00:29.6]} 39... Kh4 {[%clk 0:00:02.3]} 40.
Kb3 {[%clk 0:00:30.4]} 40... Rc6 {[%clk 0:00:01.8]} 41. Rf3 {[%clk 0:00:31.1]}
41... f6 {[%clk 0:00:01.2]} 42. Nd5 {[%clk 0:00:31.6]} 1-0